fUST/lending_fUST_20250426
["ID","MTS","AMOUNT","RATE_DAILY","PERIOD"]
[358976373,1745599833589,-1110.34,0.00016438,2]
[358976374,1745599833599,-633.28346735,0.00016438,2]
[358976375,1745599833608,-500.0,0.00016438,2]
[358976376,1745599833617,-500.0,0.00016438,2]
[358976377,1745599833626,-500.0,0.00016438,2]
[358976378,1745599833636,-826.56,0.00016438,2]
[358976379,1745599833649,-500.0,0.00016438,2]
[358976380,1745599833659,-316.96325223,0.00016438,2]
[358976381,1745599833668,-500.0,0.00016438,2]
[358976382,1745599833677,-979.4,0.00016438,2]
[358976383,1745599833687,-500.0,0.00016438,2]
[358976384,1745599833696,-528.28,0.00016438,2]
[358976385,1745599833706,-500.0,0.00016438,2]
[358976386,1745599833715,-500.0,0.00016438,2]
[358976387,1745599833725,-151.0,0.00016438,2]
[358976388,1745599833734,-500.0,0.00016438,2]
[358976389,1745599833744,-632.03,0.00016438,2]
[358976390,1745599833753,-505.21015202,0.00016438,2]
[358976391,1745599833763,-500.0,0.00016438,2]
[358976392,1745599833772,-500.0,0.00016438,2]
[358976393,1745599833784,-220.06711171,0.00016438,2]
[358976394,1745599833793,-781.36,0.00016438,2]
[358976395,1745599833803,-500.0,0.00016438,2]
[358976396,1745599833813,-500.0,0.00016438,2]
[358976397,1745599833823,-500.0,0.00016438,2]
[358976398,1745599833833,-500.0,0.00016438,2]
[358976399,1745599833843,-500.0,0.00016438,2]
[358976400,1745599833852,-501.17185369,0.00016438,2]
[358976401,1745599833862,-500.0,0.00016438,2]
[358976402,1745599833872,-500.0,0.00016438,2]
[358976403,1745599833882,-293.211476,0.00016438,2]
[358976404,1745599833892,-500.0,0.00016438,2]
[358976405,1745599833901,-500.0,0.00016438,2]
[358976406,1745599833912,-396.87341308,0.00016438,2]
[358976407,1745599833922,-500.0,0.00016438,2]
[358976408,1745599833932,-681.61,0.00016438,2]
[358976409,1745599833942,-501.10286075,0.00016438,2]
[358976410,1745599833952,-502.2,0.00016438,2]
[358976411,1745599833962,-500.0,0.00016438,2]
[358976412,1745599833971,-500.0,0.00016438,2]
[358976413,1745599833980,-363.97,0.00016438,2]
[358976414,1745599833989,-500.0,0.00016438,2]
[358976415,1745599833998,-1105.64,0.00016438,2]
[358976416,1745599834008,-1786.29,0.00016438,2]
[358976417,1745599834018,-500.0,0.00016438,2]
[358976418,1745599834028,-500.0,0.00016438,2]
[358976419,1745599834037,-859.61,0.00016438,2]
[358976420,1745599834047,-500.0,0.00016438,2]
[358976421,1745599834057,-500.0,0.00016438,2]
[358976422,1745599834067,-505.06734545,0.00016438,2]
[358976423,1745599834077,-500.0,0.00016438,2]
[358976424,1745599834087,-500.0,0.00016438,2]
[358976425,1745599834096,-2675.66,0.00016438,2]
[358976426,1745599834106,-155.18078492,0.00016438,2]
[358976430,1745599838529,-344.81921508,0.00016438,2]
[358976431,1745599838539,-500.0,0.00016438,2]
[358976432,1745599838549,-1538.76,0.00016438,2]
[358976433,1745599838559,-513.62,0.00016438,2]
[358976434,1745599838569,-500.0,0.00016438,2]
[358976435,1745599838578,-500.0,0.00016438,2]
[358976436,1745599838587,-500.0,0.00016438,2]
[358976437,1745599838597,-6359.46441406,0.00016438,2]
[358976929,1745599843769,-305.9309539,0.00016437,2]
[358976931,1745599843780,-337.07384182,0.00016437,2]
[358976933,1745599843793,-600.09,0.00016438,2]
[358976935,1745599843802,-500.0,0.00016438,2]
[358976937,1745599843811,-1452.34,0.00016438,2]
[358976939,1745599843821,-12672.37444865,0.00016438,2]
[358976941,1745599843831,-1804.134429,0.00016438,2]
[358976943,1745599843841,-160.0,0.00016468,2]
[358976945,1745599843850,-840.21051354,0.00016468,2]
[358976947,1745599843860,-160.0,0.00016468,2]
[358976949,1745599843869,-160.0,0.00016468,2]
[358976952,1745599843878,-4257.84581309,0.00016468,2]
[358980494,1745600834135,-900.0,0.00015436,2]
[358980495,1745600834668,-500.0,0.00015436,2]
[358980496,1745600834697,-170.45349282,0.00015436,2]
[358980497,1745600841116,-329.54650718,0.00015436,2]
[358980498,1745600841145,-500.0,0.00015436,2]
[358980499,1745600841174,-177.23844964,0.00015436,2]
[358980500,1745600841203,-503.46963557,0.00015437,2]
[358980548,1745601031739,-699.856,0.00015337,2]
[358980550,1745601031751,-1576.06303322,0.00015337,2]
[358980552,1745601031761,-300.0,0.00015436,2]
[358980554,1745601031771,-244.41366617,0.00015437,2]
[358980562,1745601031844,-15962.09346296,0.00015437,2]
[358980564,1745601031854,-222.56536409,0.00016171,2]
[358980566,1745601031863,-160.0,0.0001618,2]
[358980568,1745601031873,-7345.60764813,0.00016298,2]
[358980669,1745601037754,-1009.98155853,0.00016199,2]
[358980675,1745601037807,-36.92999787,0.00016199,2]
[358980677,1745601037816,-410.49492502,0.00016298,2]
[358980679,1745601037828,-899.75,0.00016298,2]
[358980879,1745601040146,-12514.08142285,0.00016298,2]
[358980881,1745601040158,-321.02258812,0.00016299,2]
[358980883,1745601040172,-474.89599203,0.00016328,2]
[358980891,1745601040252,-74.36294529,0.00016328,2]
[358980893,1745601040262,-318.16449965,0.00016337,2]
[358980895,1745601040271,-204.01050476,0.00016337,2]
[358981133,1745601042894,-193.80661227,0.00016337,2]
[358981135,1745601042904,-1000.0,0.00016338,2]
[358981137,1745601042913,-207.4,0.0001639,2]
[358981139,1745601042923,-1741.69788674,0.000164,2]
[358981141,1745601042934,-2199.99646509,0.000164,2]
[358981144,1745601042946,-990.20353383,0.000164,2]
[358981324,1745601045785,-1001.324505,0.000164,2]
[358982390,1745601815059,174853.35240183,0.00015,2]
[358982391,1745601877294,94066.77760934,0.00015,2]
[358982409,1745601996589,-1685.0,0.00027397,120]
[358982410,1745601996612,-500.0,0.00027397,120]
[358982411,1745601996634,-500.0,0.00027397,120]
[358982412,1745601996655,-500.0,0.00027397,120]
[358982413,1745601996677,-500.0,0.00027397,120]
[358982414,1745601996698,-500.0,0.00027397,120]
[358982415,1745601996718,-500.0,0.00027397,120]
[358982416,1745601996739,-507.94591611,0.00027397,120]
[358982417,1745601996903,-807.05408389,0.00027945,120]
[358982418,1745601997063,-1192.94591611,0.00027945,120]
[358982419,1745601997225,-2000.0,0.00028493,120]
[358982424,1745602039149,-197.83608001,0.00015891,2]
[358982425,1745602039172,-640.08852032,0.00015991,2]
[358982426,1745602039194,-300.0,0.00015997,2]
[358982427,1745602039216,-500.0,0.00015998,2]
[358982428,1745602039239,-290.16985243,0.00015998,2]
[358982429,1745602039262,-445.18885687,0.00015998,2]
[358982430,1745602039294,-500.0,0.00015998,2]
[358982431,1745602039325,-500.0,0.00015998,2]
[358982432,1745602039358,-500.0,0.00015998,2]
[358982433,1745602039390,-500.0,0.00015998,2]
[358982434,1745602039422,-624.69120912,0.00015998,2]
[358982435,1745602039447,-1064.73415921,0.000162,2]
[358982436,1745602039468,-300.0,0.00016299,2]
[358982437,1745602039495,-1200.0,0.00016299,2]
[358982438,1745602039517,-222.71514975,0.00016299,2]
[358982439,1745602039539,-247.07952781,0.00016299,2]
[358982440,1745602039563,-546.05007571,0.00016299,2]
[358982441,1745602039585,-5668.25147068,0.000163,2]
[358982442,1745602041564,-1227.58849059,0.000163,2]
[358982443,1745602050189,-327.1960002,0.000163,2]
[358982498,1745602231846,-300.0,0.00016299,2]
[358982499,1745602231857,-1798.75040722,0.000163,2]
[358982500,1745602231870,-428.0601985,0.000163,2]
[358982523,1745602237857,-653.96976556,0.000163,2]
[358982524,1745602237870,-3267.54059624,0.000163,2]
[358982528,1745602238023,-898.76901015,0.000163,2]
[358982530,1745602238035,-17935.96573296,0.000163,2]
[358982567,1745602240399,-2508.81796141,0.000163,2]
[358982569,1745602240455,-2382.47027819,0.000163,2]
[358982570,1745602240467,-2129.99278796,0.000163,2]
[358982635,1745602243103,-253.74189733,0.000163,2]
[358982636,1745602243116,-450.51382276,0.000163,2]
[358982637,1745602243128,-488.23315265,0.000163,2]
[358982638,1745602243326,-1482.11281919,0.000163,2]
[358982639,1745602243338,-6790.48728241,0.000163,2]
[358982640,1745602243350,-439.40714984,0.00016338,2]
[358982641,1745602243360,-500.0,0.00016373,2]
[358982642,1745602243370,-12579.26882624,0.0001639,3]
[358982643,1745602243380,-840.21051354,0.0001639,3]
[358982644,1745602243390,-11138.87679154,0.0001639,2]
[358982645,1745602243399,-20579.78527832,0.00016397,2]
[358982646,1745602243411,-504.68148946,0.00016397,2]
[358982654,1745602245904,-345.38682161,0.00016397,2]
[358982655,1745602245960,-1054.54,0.00016397,2]
[358982665,1745603244140,-785.97721493,0.00015275,2]
[358982666,1745603250111,-214.02278507,0.00015275,2]
[358982667,1745603250132,-250.0,0.00015375,2]
[358982668,1745603250157,-1172.011237,0.00015403,2]
[358982669,1745603250184,-170.5803361,0.00016248,2]
[358982670,1745603250205,-170.58033606,0.00016261,2]
[358982671,1745603250226,-170.58033606,0.00016274,2]
[358982672,1745603250246,-170.58033606,0.00016287,2]
[358982673,1745603250266,-170.58033606,0.000163,2]
[358982674,1745603250290,-429.51216632,0.00016338,2]
[358982675,1745603250310,-359.0,0.00016349,2]
[358982676,1745603250330,-248.6023329,0.00016396,2]
[358982677,1745603250351,-411.43150359,0.00016396,2]
[358982678,1745603250371,-300.0,0.00016396,2]
[358982679,1745603250392,-2691.78970404,0.00016397,2]
[358982699,1745603432124,-239.33735911,0.00016396,2]
[358982700,1745603432134,-261.15286719,0.00016396,2]
[358982701,1745603432143,-4108.72498837,0.00016397,2]
[358982703,1745603432153,-300.0,0.00016399,2]
[358982705,1745603432162,-300.0,0.00016399,2]
[358982707,1745603432172,-300.0,0.00016399,2]
[358982709,1745603432183,-153.0,0.000164,2]
[358982711,1745603432192,-153.0,0.000164,2]
[358982713,1745603432202,-6663.46441406,0.00016428,2]
[358982715,1745603432211,-207.4,0.00016428,2]
[358982717,1745603432221,-6401.42523132,0.00016428,3]
[358982719,1745603432233,-2104.45584709,0.00016428,3]
[358982721,1745603432244,-40.04783869,0.00016428,3]
[358982724,1745603432253,-517.77172799,0.00016428,3]
[358982842,1745603437992,-322.43878555,0.00016428,3]
[358982843,1745603438003,-321.41908911,0.00016428,3]
[358982844,1745603438017,-2496.51081206,0.00016428,3]
[358982845,1745603438030,-3202.01642246,0.00016428,3]
[358982846,1745603438047,-19.76367637,0.00016428,3]
[358982847,1745603438057,-3019.85,0.00016428,3]
[358982848,1745603438067,-1509.93,0.00016428,3]
[358982849,1745603438077,-546.45147756,0.00016437,2]
[358982850,1745603438086,-231.95911543,0.00016437,2]
[358982851,1745603438096,-219.37317711,0.00016437,2]
[358982852,1745603438105,-151.0,0.00016438,2]
[358982854,1745603438115,-228.744589,0.00016438,2]
[358982856,1745603438125,-151.914904,0.00016438,2]
[358982858,1745603438135,-500.0,0.00016438,2]
[358982860,1745603438144,-376.6687389,0.00016438,2]
[358982862,1745603438154,-500.0,0.00016438,2]
[358982864,1745603438163,-151.0,0.00016438,2]
[358982866,1745603438178,-500.0,0.00016438,2]
[358982868,1745603438188,-151.0,0.00016438,2]
[358982870,1745603438198,-151.0,0.00016438,2]
[358982872,1745603438208,-202.935364,0.00016438,2]
[358982874,1745603438217,-500.0,0.00016438,2]
[358982876,1745603438227,-151.0,0.00016438,2]
[358982878,1745603438236,-30.92513103,0.00016438,2]
[358982882,1745603438259,-120.07486897,0.00016438,2]
[358982884,1745603438269,-151.0,0.00016438,2]
[358982886,1745603438279,-282.93106,0.00016438,2]
[358982888,1745603438288,-283.56348605,0.00016438,2]
[358982890,1745603438297,-500.0,0.00016438,2]
[358982892,1745603438307,-512.85526826,0.00016438,2]
[358982894,1745603438316,-151.0,0.00016438,2]
[358982896,1745603438326,-151.0,0.00016438,2]
[358982898,1745603438335,-151.0,0.00016438,2]
[358982900,1745603438345,-151.0,0.00016438,2]
[358982902,1745603438354,-151.0,0.00016438,2]
[358982904,1745603438364,-151.0,0.00016438,2]
[358982906,1745603438373,-151.0,0.00016438,2]
[358982908,1745603438382,-151.0,0.00016438,2]
[358982910,1745603438392,-151.0,0.00016438,2]
[358982911,1745603438401,-151.0,0.00016438,2]
[358982913,1745603438411,-151.0,0.00016438,2]
[358982915,1745603438420,-151.0,0.00016438,2]
[358982917,1745603438430,-151.0,0.00016438,2]
[358982919,1745603438441,-248.506128,0.00016438,2]
[358982921,1745603438452,-155.739423,0.00016438,2]
[358982923,1745603438461,-158.5,0.00016438,2]
[358982925,1745603438470,-500.0,0.00016438,2]
[358982927,1745603438480,-500.0,0.00016438,2]
[358982929,1745603438490,-500.0,0.00016438,2]
[358982931,1745603438500,-500.0,0.00016438,2]
[358982933,1745603438510,-500.0,0.00016438,2]
[358982935,1745603438520,-500.0,0.00016438,2]
[358982937,1745603438529,-151.0,0.00016438,2]
[358982939,1745603438538,-151.0,0.00016438,2]
[358982941,1745603438549,-151.0,0.00016438,2]
[358982943,1745603438558,-151.0,0.00016438,2]
[358982945,1745603438567,-151.0,0.00016438,2]
[358982947,1745603438577,-176.181427,0.00016438,2]
[358982949,1745603438587,-500.0,0.00016438,2]
[358982951,1745603438596,-151.0,0.00016438,2]
[358982953,1745603438605,-500.0,0.00016438,2]
[358982956,1745603438615,-500.0,0.00016438,2]
[358982957,1745603438625,-500.0,0.00016438,2]
[358982959,1745603438634,-500.0,0.00016438,2]
[358982961,1745603438643,-500.0,0.00016438,2]
[358982963,1745603438653,-500.0,0.00016438,2]
[358982965,1745603438662,-500.0,0.00016438,2]
[358982967,1745603438672,-249.25067763,0.00016438,2]
[358983262,1745603444389,-754.96,0.00016428,3]
[358983264,1745603444399,-250.74932237,0.00016438,2]
[358983266,1745603444409,-500.0,0.00016438,2]
[358983268,1745603444418,-500.0,0.00016438,2]
[358983270,1745603444427,-151.0,0.00016438,2]
[358983272,1745603444437,-500.0,0.00016438,2]
[358983273,1745603444448,-441.28744817,0.00016438,2]
[358983275,1745603444458,-151.0,0.00016438,2]
[358983277,1745603444467,-151.0,0.00016438,2]
[358983280,1745603444477,-151.0,0.00016438,2]
[358983281,1745603444487,-151.0,0.00016438,2]
[358983283,1745603444496,-500.0,0.00016438,2]
[358983285,1745603444506,-151.0,0.00016438,2]
[358983287,1745603444515,-151.0,0.00016438,2]
[358983289,1745603444524,-151.0,0.00016438,2]
[358983291,1745603444534,-114.95720553,0.00016438,2]
[358983294,1745603444551,-36.04279447,0.00016438,2]
[358983296,1745603444560,-151.0,0.00016438,2]
[358983298,1745603444569,-151.0,0.00016438,2]
[358983300,1745603444579,-151.0,0.00016438,2]
[358983302,1745603444589,-98.75720553,0.00016438,2]
[358983432,1745603446242,-52.24279447,0.00016438,2]
[358983434,1745603446252,-151.0,0.00016438,2]
[358983436,1745603446261,-151.0,0.00016438,2]
[358983437,1745603446271,-24.91908495,0.00016438,2]
[358983448,1745603446406,-475.08091505,0.00016438,2]
[358983449,1745603446415,-151.0,0.00016438,2]
[358983451,1745603446425,-151.0,0.00016438,2]
[358983453,1745603446434,-151.0,0.00016438,2]
[358983454,1745603446445,-151.0,0.00016438,2]
[358983456,1745603446454,-151.0,0.00016438,2]
[358983457,1745603446464,-259.94351,0.00016438,2]
[358983459,1745603446474,-489.39939145,0.00016438,2]
[358983461,1745603446486,-10.60060855,0.00016438,2]
[358983463,1745603446495,-225.36507192,0.00016438,2]
[358983464,1745603446505,-500.0,0.00016438,2]
[358983466,1745603446514,-500.0,0.00016438,2]
[358983468,1745603446524,-500.0,0.00016438,2]
[358983469,1745603446533,-500.0,0.00016438,2]
[358983471,1745603446542,-500.0,0.00016438,2]
[358983472,1745603446552,-111.19431953,0.00016438,2]
[358983474,1745603446564,-865.0,0.00016438,2]
[358985568,1745604428099,-473.75442602,0.00015951,2]
[358985569,1745604428624,-318.72191663,0.00016297,2]
[358985570,1745604428644,-222.5653641,0.00016297,2]
[358985571,1745604428665,-405.99889016,0.00016338,2]
[358985572,1745604428693,-500.0,0.00016426,2]
[358985573,1745604428718,-131.11567717,0.00016426,2]
[358985575,1745604450179,-368.88432283,0.00016426,2]
[358985576,1745604450207,-500.0,0.00016426,2]
[358985577,1745604450236,-271.98372559,0.00016426,2]
[358985578,1745604450263,-351.13781661,0.00016427,2]
[358985597,1745604632208,-260.2289609,0.00016303,2]
[358985598,1745604632218,-600.0,0.0001632,2]
[358985601,1745604632228,-324.79911216,0.00016338,2]
[358985602,1745604632238,-300.0,0.00016427,2]
[358985603,1745604632247,-738.0,0.00016427,2]
[358985605,1745604632258,-207.4,0.00016428,2]
[358985607,1745604632268,-3659.55966971,0.00016428,3]
[358985608,1745604632280,-543.15596667,0.00016428,3]
[358985617,1745604632397,-3328.93124352,0.00016428,3]
[358985618,1745604632409,-1093.58,0.00016428,3]
[358985640,1745604638256,-1988.17814339,0.00016428,3]
[358985641,1745604638267,-1965.86380295,0.00016428,3]
[358985642,1745604638278,-840.21051354,0.00016428,3]
[358985643,1745604638287,-12694.75,0.00016428,3]
[358985644,1745604638297,-6347.38,0.00016428,3]
[358985645,1745604638306,-151.0,0.00016438,2]
[358985646,1745604638318,-151.0,0.00016438,2]
[358985647,1745604638331,-151.0,0.00016438,2]
[358985648,1745604638341,-178.383012,0.00016438,2]
[358985649,1745604638350,-151.0,0.00016438,2]
[358985650,1745604638361,-151.0,0.00016438,2]
[358985651,1745604638370,-284.096192,0.00016438,2]
[358985652,1745604638379,-151.0,0.00016438,2]
[358985653,1745604638388,-151.0,0.00016438,2]
[358985654,1745604638400,-49.57252041,0.00016438,2]
[358985761,1745604643318,-101.42747959,0.00016438,2]
[358985762,1745604643330,-151.0,0.00016438,2]
[358985763,1745604643339,-275.501632,0.00016438,2]
[358985764,1745604643350,-151.0,0.00016438,2]
[358985765,1745604643360,-151.0,0.00016438,2]
[358985766,1745604643369,-151.0,0.00016438,2]
[358985767,1745604643379,-151.0,0.00016438,2]
[358985768,1745604643388,-151.0,0.00016438,2]
[358985769,1745604643401,-151.0,0.00016438,2]
[358985770,1745604643412,-173.20609,0.00016438,2]
[358985771,1745604643422,-151.0,0.00016438,2]
[358985772,1745604643432,-151.0,0.00016438,2]
[358985773,1745604643441,-151.0,0.00016438,2]
[358985774,1745604643450,-151.0,0.00016438,2]
[358985775,1745604643460,-151.0,0.00016438,2]
[358985776,1745604643469,-151.0,0.00016438,2]
[358985777,1745604643478,-151.0,0.00016438,2]
[358985778,1745604643488,-151.0,0.00016438,2]
[358985779,1745604643497,-151.0,0.00016438,2]
[358985780,1745604643506,-151.0,0.00016438,2]
[358985781,1745604643515,-151.0,0.00016438,2]
[358985782,1745604643524,-151.0,0.00016438,2]
[358985783,1745604643534,-151.0,0.00016438,2]
[358985784,1745604643543,-151.0,0.00016438,2]
[358985785,1745604643553,-151.0,0.00016438,2]
[358985786,1745604643562,-151.0,0.00016438,2]
[358985787,1745604643572,-500.0,0.00016438,2]
[358985788,1745604643581,-500.0,0.00016438,2]
[358985789,1745604643592,-500.0,0.00016438,2]
[358985790,1745604643601,-246.11512503,0.00016438,2]
[358985791,1745604643614,-253.88487497,0.00016438,2]
[358985792,1745604643623,-500.0,0.00016438,2]
[358985793,1745604643633,-500.0,0.00016438,2]
[358985794,1745604643642,-500.0,0.00016438,2]
[358985795,1745604643651,-136.80467207,0.00016438,2]
[358985802,1745604646285,-436.959998,0.00016428,3]
[358985804,1745604816953,169.56,0.000249,31]
[358985805,1745604817012,169.56,0.000249,31]
[358985806,1745604817067,169.56,0.000249,31]
[358985807,1745604817128,169.56,0.000249,31]
[358985808,1745604817190,169.56,0.000249,31]
[358985809,1745604817254,169.56,0.000249,31]
[358985810,1745604817427,169.56,0.000249,31]
[358985811,1745604817480,169.56,0.000249,31]
[358985812,1745604817526,169.56,0.000249,31]
[358985813,1745604817567,169.56,0.000249,31]
[358985814,1745604817605,169.56,0.000249,31]
[358985815,1745604817641,169.56,0.000249,31]
[358985816,1745604817679,169.56,0.000249,31]
[358985817,1745604817720,169.56,0.000249,31]
[358985818,1745604817762,169.56,0.000249,31]
[358985819,1745604817819,169.56,0.000249,31]
[358985820,1745605045112,807.05408389,0.00027945,120]
[358985821,1745605116649,192.94591611,0.00025,30]
[358985822,1745605252726,2885.9022531,0.00025,30]
[358985823,1745605428584,153.17,0.000249,31]
[358985824,1745605428641,153.17,0.000249,31]
[358985825,1745605428700,153.17,0.000249,31]
[358985826,1745605428746,153.17,0.000249,31]
[358985827,1745605428789,153.17,0.000249,31]
[358985828,1745605428830,153.17,0.000249,31]
[358985829,1745605428893,153.17,0.000249,31]
[358985830,1745605428955,153.17,0.000249,31]
[358985831,1745605429016,153.17,0.000249,31]
[358985832,1745605429078,153.17,0.000249,31]
[358985833,1745605429141,153.17,0.000249,31]
[358985834,1745605429373,153.17,0.000249,31]
[358985835,1745605429461,153.17,0.000249,31]
[358985836,1745605429522,153.17,0.000249,31]
[358985837,1745605429655,153.17,0.000249,31]
[358985838,1745605429722,153.17,0.000249,31]
[358985842,1745605630094,-197.83608001,0.00015312,2]
[358985843,1745605630119,-129.35992019,0.00015409,2]
[358985844,1745605632136,-170.64007981,0.00015409,2]
[358985845,1745605632158,-500.0,0.0001541,2]
[358985846,1745605632178,-251.3976671,0.0001541,2]
[358985847,1745605632199,-331.99248113,0.0001541,2]
[358985848,1745605652100,-113.19637574,0.0001541,2]
[358985849,1745605652122,-290.16985243,0.0001541,2]
[358985850,1745605652150,-500.0,0.0001541,2]
[358985851,1745605652178,-500.0,0.0001541,2]
[358985852,1745605652205,-500.0,0.0001541,2]
[358985853,1745605652230,-306.36835298,0.0001541,2]
[358985854,1745605652257,-500.0,0.0001541,2]
[358985855,1745605652279,-4396.3176324,0.00015412,2]
[358985856,1745605652299,-300.0,0.00015999,2]
[358985857,1745605652321,-1200.0,0.00015999,2]
[358985858,1745605652342,-4421.28782558,0.00016,2]
[358985906,1745605832508,-934.64908606,0.00016,2]
[358985908,1745605832518,-227.98885672,0.00016203,2]
[358985909,1745605832527,-234.2060648,0.00016303,2]
[358985911,1745605832537,-601.39467186,0.0001632,2]
[358985913,1745605832546,-259.83928972,0.00016338,2]
[358985914,1745605832554,-500.0,0.00016427,2]
[358985915,1745605832568,-83.27203084,0.00016427,2]
[358986057,1745605840770,-1676.00752485,0.00016338,2]
[358986059,1745605840779,-216.72796916,0.00016427,2]
[358986061,1745605840790,-900.0,0.00016427,2]
[358986063,1745605840799,-285.0147001,0.00016428,2]
[358986065,1745605840808,-207.4,0.00016428,2]
[358986067,1745605840818,-160.0,0.00016428,3]
[358986069,1745605840827,-2035.50264867,0.00016428,3]
[358986094,1745605843616,-2887.07272484,0.00016428,3]
[358986104,1745606038877,153.18,0.000249,31]
[358986105,1745606038935,153.18,0.000249,31]
[358986106,1745606038992,153.18,0.000249,31]
[358986107,1745606039054,153.18,0.000249,31]
[358986108,1745606039117,153.18,0.000249,31]
[358986109,1745606039174,153.18,0.000249,31]
[358986110,1745606039236,153.18,0.000249,31]
[358986111,1745606039312,153.18,0.000249,31]
[358986112,1745606039363,153.18,0.000249,31]
[358986113,1745606039420,153.18,0.000249,31]
[358986114,1745606039489,153.18,0.000249,31]
[358986115,1745606039540,153.18,0.000249,31]
[358986116,1745606039600,153.18,0.000249,31]
[358986117,1745606039663,153.18,0.000249,31]
[358986121,1745606507412,1477.11679495,0.00025,30]
[358986122,1745606532012,-153.18,0.000253,31]
[358986123,1745606532047,-153.18,0.000253,31]
[358986124,1745606532080,-153.18,0.000253,31]
[358986125,1745606532113,-153.18,0.000253,31]
[358986126,1745606532433,-153.18,0.000253,31]
[358986127,1745606532466,-153.18,0.000253,31]
[358986128,1745606532498,-153.18,0.000253,31]
[358986129,1745606532529,-153.18,0.000253,31]
[358986130,1745606532560,-153.18,0.000253,31]
[358986131,1745606532591,-153.18,0.000253,31]
[358986132,1745606532622,-153.18,0.000253,31]
[358986133,1745606532653,-153.18,0.000253,31]
[358986134,1745606532684,-153.18,0.000253,31]
[358986135,1745606532846,-153.18,0.000253,31]
[358986136,1745606532879,-153.18,0.000253,31]
[358986137,1745606532911,-153.18,0.000253,31]
[358986138,1745606532945,-153.18,0.000253,31]
[358986139,1745606532977,-153.18,0.000253,31]
[358986140,1745606533146,-153.18,0.000257,31]
[358986141,1745606533179,-153.18,0.000257,31]
[358986142,1745606533212,-153.18,0.000257,31]
[358986143,1745606533246,-153.18,0.000257,31]
[358986144,1745606533279,-153.18,0.000257,31]
[358986145,1745606533311,-153.18,0.000257,31]
[358986146,1745606533343,-153.18,0.000257,31]
[358986147,1745606533375,-153.18,0.000257,31]
[358986148,1745606533407,-153.18,0.000257,31]
[358986149,1745606533743,-2000.0,0.00029041,120]
[358986150,1745606533797,-153.18,0.000257,31]
[358986151,1745606533821,-153.18,0.000257,31]
[358986152,1745606533845,-153.18,0.000257,31]
[358986153,1745606533868,-153.18,0.000257,31]
[358986154,1745606533891,-153.18,0.000257,31]
[358986155,1745606533949,-194.860002,0.00029589,120]
[358986156,1745606533987,-153.18,0.000257,31]
[358986157,1745606534011,-153.18,0.000257,31]
[358986158,1745606534033,-153.18,0.000257,31]
[358986159,1745606534056,-153.18,0.000257,31]
[358986160,1745606534348,-153.18,0.000262,31]
[358986161,1745606534371,-153.18,0.000262,31]
[358986162,1745606534400,-153.18,0.000262,31]
[358986163,1745606534422,-153.18,0.000262,31]
[358986164,1745606534442,-153.18,0.000262,31]
[358986165,1745606534473,-153.18,0.000262,31]
[358986166,1745606534496,-153.18,0.000262,31]